bitfinex/quotes_ETHUSD_20220115
["timestamp","ask_amount","ask_price","bid_price","bid_amount"]
[1642277179897,0.777,3361.4,3361.2,7.40921729]
[1642277180106,0.777,3361.4,3361.3,8.16922767]
[1642277180297,4.2254,3361.8,3361.4,6.7]
[1642277180502,6.785,3362.7,3361.7,1.98976825]
[1642277180698,4.6415,3362.6,3361.8,1.4381392]
[1642277181500,1.8513596,3362.5,3361.8,2.63575896]
[1642277181699,4.6415,3362.6,3361.8,3.35677672]
[1642277181902,1.554,3362.0,3361.8,2.15915696]
[1642277182102,1.554,3362.0,3361.9,0.2537]
[1642277182544,1.55684212,3362.0,3361.9,0.2537]
[1642277182750,1.55684212,3362.0,3361.9,2.79846709]
[1642277184447,1.55684212,3362.0,3361.9,9.44360909]
[1642277184647,1.55684212,3362.0,3361.9,9.84911709]
[1642277184848,1.55684212,3362.0,3361.9,3.59911709]
[1642277185048,2.33384212,3362.0,3361.9,3.59911709]
[1642277185449,2.33384212,3362.0,3361.9,9.44911709]
[1642277186100,2.33384212,3362.0,3361.9,3.59911709]
[1642277186899,2.33384212,3362.0,3361.9,3.65352694]
[1642277188301,3.11084212,3362.0,3361.9,3.65352694]
[1642277189505,3.11084212,3362.0,3361.9,14.38914048]
[1642277190346,3.11084212,3362.0,3361.9,3.79586694]
[1642277190552,3.11084212,3362.0,3361.9,3.28187694]
[1642277191447,3.88784212,3362.0,3361.9,3.28187694]
[1642277191846,3.88784212,3362.0,3361.8,1.15823656]
[1642277192046,3.88784212,3362.0,3361.8,1.58723656]
[1642277192245,0.00227369,3361.9,3361.8,1.58723656]
[1642277192447,0.00227369,3361.9,3361.8,13.80972088]
[1642277192649,0.00227369,3361.9,3361.8,13.92862088]
[1642277193246,3.885,3362.0,3361.9,3.65]
[1642277193508,3.885,3362.0,3361.9,5.57668164]
[1642277193798,4.6415,3362.6,3362.0,0.05566418]
[1642277193998,4.6415,3362.6,3362.1,0.91952]
[1642277194202,0.00170527,3362.2,3362.1,0.49052]
[1642277194498,0.00170527,3362.2,3362.1,0.80062]
[1642277194698,0.77870527,3362.2,3362.1,1.54386]
[1642277194898,0.77870527,3362.2,3362.1,0.80062]
[1642277196802,0.77870527,3362.2,3362.1,0.79316794]
[1642277197549,0.77870527,3362.2,3362.1,0.64316794]
[1642277197946,1.55570527,3362.2,3362.1,0.64316794]
[1642277199949,1.55570527,3362.2,3362.1,0.429]
[1642277201196,2.33270527,3362.2,3362.1,0.429]
[1642277201596,2.33270527,3362.2,3362.1,0.40669443]
[1642277202799,1.93270527,3362.2,3362.1,0.40669443]
[1642277204004,1.93270527,3362.2,3361.8,1.15823656]
[1642277204005,0.01018577,3362.1,3361.8,0.41490656]
[1642277204301,0.1189,3362.0,3361.9,0.00170527]
[1642277204950,1.37829889,3362.0,3361.9,0.00170527]
[1642277205350,1.25939889,3362.0,3361.9,0.00170527]
[1642277207753,2.03639889,3362.0,3361.9,0.00170527]
[1642277207955,0.777,3362.0,3361.9,0.00170527]
[1642277208155,0.777,3362.0,3361.9,0.02380727]
[1642277208607,0.777,3362.0,3361.9,0.14270727]
[1642277209204,0.777,3362.1,3362.0,1.44661787]
[1642277209501,0.777,3362.1,3362.0,3.86534727]
[1642277209899,0.777,3362.1,3362.0,2.4951873]
[1642277210100,0.777,3362.1,3362.0,2.48233873]
[1642277210303,1.93270527,3362.2,3362.1,6.9405235]
[1642277210502,1.93270527,3362.2,3362.1,9.32066718]
[1642277210903,4.6415,3362.6,3362.3,16.75]
[1642277210904,0.677,3362.6,3362.3,16.75]
[1642277211109,0.677,3362.6,3362.4,2.71592582]
[1642277211304,0.777,3363.0,3362.6,6.55]
[1642277211503,0.777,3363.0,3362.7,2.91809509]
[1642277211701,0.00397897,3362.9,3362.7,3.04129509]
[1642277211903,10.47678897,3363.1,3362.8,1.95063306]
[1642277212102,10.47678897,3363.1,3362.9,0.429]
[1642277212353,10.47678897,3363.1,3363.0,1.93221393]
[1642277212354,4.53311897,3363.1,3363.0,1.93221393]
[1642277212553,4.53311897,3363.1,3363.0,2.48361393]
[1642277212753,4.53425581,3363.1,3363.0,2.55527183]
[1642277212953,0.777,3363.6,3363.1,0.05736306]
[1642277213262,0.777,3366.5,3363.6,0.59416]
[1642277213263,11.65497968,3364.5,3363.6,0.59416]
[1642277213455,0.1189,3365.7,3364.4,5.36]
[1642277213456,1.69617382,3364.7,3364.4,5.36]
[1642277213658,0.1189,3365.7,3364.7,16.75]
[1642277213659,7.17569013,3365.1,3364.7,16.75]
[1642277213852,7.17569013,3365.1,3365.0,20.01]
[1642277214052,0.1189,3365.7,3365.1,16.75]
[1642277214253,0.1189,3365.7,3365.5,5.36]
[1642277214454,0.35123667,3365.6,3365.5,14.7078]
[1642277214653,0.35123667,3365.6,3365.5,14.843]
[1642277214855,0.30123667,3365.6,3365.5,10.41048503]
[1642277215054,3.82717667,3365.9,3365.6,6.65]
[1642277215253,3.82717667,3365.9,3365.8,5.36]
[1642277215454,3.82717667,3365.9,3365.8,6.5249]
[1642277215653,3.82717667,3365.9,3365.8,6.6433]
[1642277215854,3.77717667,3365.9,3365.8,6.7181579]
[1642277216107,3.77717667,3365.9,3365.8,6.6013579]
[1642277216610,3.77717667,3365.9,3365.8,8.31668826]
[1642277216806,3.77717667,3365.9,3365.8,6.58648052]
[1642277217207,4.55417667,3365.9,3365.8,6.58648052]
[1642277218309,4.05417667,3365.9,3365.8,6.51002262]
[1642277218512,4.05417667,3365.9,3365.8,8.4414784]
[1642277218709,0.119139,3366.0,3365.9,16.75]
[1642277218923,7.55032818,3366.1,3365.9,5.789]
[1642277219112,0.01648428,3366.0,3365.9,5.9026]
[1642277219309,0.01648428,3366.0,3365.9,5.9002]
[1642277219753,0.01648428,3366.0,3365.9,5.789]
[1642277219953,0.01648428,3366.0,3365.9,0.429]
[1642277220352,0.79348428,3366.0,3365.9,0.429]
[1642277221160,0.04059485,3365.9,3365.5,1.35299517]
[1642277221355,0.04059485,3365.7,3365.0,0.429]
[1642277221563,0.04059485,3365.7,3364.4,0.8652]
[1642277221564,0.1188,3365.6,3364.5,0.429]
[1642277221756,0.13301059,3365.6,3364.5,0.429]
[1642277221954,1.37299562,3364.9,3364.7,0.29712]
[1642277222154,1.37299562,3364.9,3364.7,0.28225609]
[1642277222356,0.0096632,3364.8,3364.7,1.41333862]
[1642277222754,0.0096632,3364.8,3364.7,1.84233862]
[1642277223254,0.0096632,3364.8,3364.7,9.79233862]
[1642277223697,0.7866632,3364.8,3364.7,9.79233862]
[1642277224298,0.7866632,3364.8,3364.7,9.74233862]
[1642277224501,4.5875,3365.8,3364.8,7.9]
[1642277224700,4.5875,3365.8,3364.8,14.41243616]
[1642277224899,0.00511581,3365.7,3365.1,0.22277]
[1642277225099,0.00511581,3365.7,3365.4,1.15578596]
[1642277225299,0.00454739,3365.6,3365.5,1.73339315]
[1642277225501,4.4687,3365.8,3365.5,2.27732134]
[1642277225698,4.4687,3365.8,3365.6,0.1188]
[1642277225899,4.4687,3365.8,3365.7,0.429]
[1642277226300,4.46983685,3365.8,3365.7,0.429]
[1642277226705,4.46983685,3365.8,3365.7,1.83957741]
[1642277226900,5.24683685,3365.8,3365.7,1.81729582]
[1642277227103,0.77813685,3365.8,3365.7,3.55700074]
[1642277227750,0.77813685,3365.8,3365.7,1.74288663]
[1642277230156,1.55513685,3365.8,3365.7,1.74288663]
[1642277230752,3.44267579,3365.8,3365.7,1.74288663]
[1642277231201,15.55939485,3365.7,3364.3,0.4101]
[1642277231403,0.03211267,3365.3,3364.3,0.4101]
[1642277231600,0.02796416,3365.1,3364.4,0.00682108]
[1642277231802,0.01400618,3364.9,3364.4,0.00682108]
[1642277232006,0.03337717,3365.1,3364.4,0.00682108]
[1642277232200,1.53867123,3364.8,3364.5,1.1230582]
[1642277232402,0.1188,3364.7,3364.5,1.1230582]
[1642277232608,0.1188,3364.7,3364.6,0.00568423]
[1642277232801,1.53867123,3364.8,3364.6,0.00568423]
[1642277233402,2.31567123,3364.8,3364.6,0.00568423]
[1642277233802,0.777,3364.8,3364.6,0.00568423]
[1642277234204,9.84317096,3364.7,3364.6,0.00568423]
[1642277234611,1.94317096,3364.7,3364.6,0.00568423]
[1642277234858,0.777,3364.8,3364.6,0.00568423]
[1642277235058,11.95760805,3364.7,3364.6,0.00568423]
[1642277235260,13.25196181,3364.7,3364.6,0.00568423]
[1642277235457,13.25196181,3364.7,3364.4,0.00682108]
[1642277235458,0.03654939,3364.6,3364.4,0.00682108]
[1642277235661,11.4688,3364.5,3364.4,0.00682108]
[1642277236259,1.55575596,3364.5,3364.4,0.00682108]
[1642277236658,2.33275596,3364.5,3364.4,0.00682108]
[1642277236861,2.33275596,3364.5,3364.3,2.108e-05]
[1642277237166,0.1188,3364.4,3364.3,2.108e-05]
[1642277239810,0.8958,3364.4,3363.9,0.027278]
[1642277240004,1.39824237,3364.3,3363.9,0.027278]
[1642277240204,0.1189,3364.2,3364.0,0.00227369]
[1642277240405,1.11653406,3364.1,3364.0,0.00227369]
[1642277241004,1.11653406,3364.1,3363.9,0.00284212]
[1642277241205,1.11653406,3364.1,3363.8,1.44987625]
[1642277241403,0.04059485,3364.0,3363.8,1.44987625]
[1642277241802,1.11653406,3364.1,3363.8,1.44987625]
[1642277242003,1.11653406,3364.1,3363.8,1.39987625]
[1642277242248,1.15911454,3364.0,3363.8,1.39987625]
[1642277243050,1.93611454,3364.0,3363.8,1.39987625]
[1642277246101,1.93611454,3364.0,3363.8,1.37758204]
[1642277246300,2.71311454,3364.0,3363.8,1.37758204]
[1642277246504,2.71311454,3364.0,3363.6,2.18168763]
[1642277246701,2.71311454,3364.0,3363.4,0.1189]
[1642277246902,0.04059485,3363.9,3363.7,0.00113685]
[1642277247407,1.554,3364.0,3363.8,9.729]
[1642277247608,1.554,3364.0,3363.9,9.3]
[1642277248503,1.554,3364.0,3363.9,11.84314955]
[1642277248902,0.01815551,3364.3,3364.2,2.51470429]
[1642277249102,1.99061297,3364.4,3364.2,2.51470429]
[1642277249301,0.0022737,3364.3,3364.2,2.51470429]
[1642277250757,0.04286855,3364.3,3363.4,0.00284212]
[1642277250956,0.01925165,3364.1,3363.4,0.00284212]
[1642277251158,0.1189,3364.0,3363.6,0.00170527]
[1642277251356,0.1189,3364.1,3363.6,0.00170527]
[1642277251557,0.00113685,3364.1,3363.6,0.00170527]
[1642277251760,1.28869761,3364.0,3363.5,0.0066855]
[1642277251955,0.03625353,3363.9,3363.5,0.0066855]
[1642277252156,0.0379588,3363.9,3363.3,0.429]
[1642277252357,1.45197748,3363.6,3363.3,0.429]
[1642277252656,0.00170527,3363.9,3363.4,0.22406685]
[1642277252864,0.777,3363.6,3363.4,2.01194123]
[1642277253057,0.00113685,3363.8,3363.6,8.85]
[1642277253257,0.00113685,3363.8,3363.7,7.7092345]
[1642277253510,0.00170527,3363.9,3363.7,2.5092345]
[1642277253698,0.00113685,3363.8,3363.7,1.92732851]
[1642277253898,0.00113685,3363.8,3363.7,3.85829217]
[1642277254298,0.00113685,3363.8,3363.7,1.92732851]
[1642277254500,0.00113685,3363.8,3363.7,0.429]
[1642277254698,0.00113685,3363.8,3363.7,0.87476]
[1642277256201,0.77813685,3363.8,3363.7,0.87476]
[1642277256403,0.77813685,3363.8,3363.7,0.44576]
[1642277256601,0.77813685,3363.8,3363.4,0.07759475]
[1642277256803,0.77813685,3363.8,3363.5,0.1189]
[1642277257354,0.77813685,3363.8,3363.6,0.02470269]
[1642277257753,0.77813685,3363.8,3363.5,0.34182]
[1642277258454,0.77813685,3363.8,3363.6,0.03163162]
[1642277258654,0.77813685,3363.8,3363.6,0.429]
[1642277259255,1.55513685,3363.8,3363.6,0.429]
[1642277259457,0.55513685,3363.8,3363.6,0.429]
[1642277260458,0.55513685,3363.8,3363.6,2.2348049]
[1642277260658,0.55513685,3363.8,3363.6,0.429]
[1642277261101,0.55513685,3363.8,3363.7,0.1189]
[1642277261302,0.55513685,3363.8,3363.6,0.429]
[1642277262002,0.55513685,3363.8,3363.6,2.24767469]
[1642277262201,0.55513685,3363.8,3363.6,0.429]
[1642277262403,1.33213685,3363.8,3363.7,1.52264446]
[1642277262601,1.33213685,3363.8,3363.6,0.429]
[1642277264102,1.26676703,3364.2,3363.9,0.05610457]
[1642277264503,0.00170527,3364.1,3363.9,0.05610457]
[1642277264750,0.00170527,3364.1,3363.8,2.63713215]
[1642277264951,1.554,3364.4,3363.8,2.63713215]
[1642277264952,0.00113685,3364.0,3363.8,2.63713215]
[1642277265451,0.00284212,3364.3,3363.8,2.63713215]
[1642277265851,2.331,3364.4,3363.8,2.63713215]
[1642277265852,0.04059485,3364.1,3363.8,2.63713215]
[1642277266057,2.81123209,3363.9,3363.8,2.63713215]
[1642277266652,2.81123209,3363.9,3363.8,2.6148414]
[1642277267252,0.00113685,3364.0,3363.8,2.6148414]
[1642277267452,0.00113685,3364.0,3363.9,7.5229]
[1642277268514,0.00113685,3364.0,3363.9,10.06576181]
[1642277268712,1.31047685,3364.0,3363.9,10.06576181]
[1642277268905,2.08747685,3364.0,3363.9,10.06576181]
[1642277269507,0.77813685,3364.0,3363.9,10.06576181]
[1642277271608,0.77813685,3364.0,3363.9,10.04347029]
[1642277272252,1.55513685,3364.0,3363.9,2.74347029]
[1642277272451,1.55513685,3364.0,3363.9,2.74169029]
[1642277273051,1.55513685,3364.0,3363.9,4.56154653]
[1642277273252,1.55513685,3364.0,3363.9,4.54323975]
[1642277273469,1.55276685,3364.0,3363.9,4.55346376]
[1642277273655,1.55276685,3364.0,3363.9,2.74169029]
[1642277273857,1.55276685,3364.0,3363.9,4.55337086]
[1642277274151,1.55276685,3364.0,3363.9,4.54654292]
[1642277274350,1.55276685,3364.0,3363.9,4.54961345]
[1642277274553,1.55276685,3364.0,3363.9,2.74169029]
[1642277274752,1.55276685,3364.0,3363.9,5.10736407]
[1642277275153,2.331,3364.4,3364.0,4.55]
[1642277275354,2.331,3364.4,3364.2,0.44567]
[1642277275553,2.331,3364.4,3364.3,1.96257852]
[1642277276007,2.33327369,3364.4,3364.3,3.09653925]
[1642277276507,2.33327369,3364.4,3364.3,1.96257852]
[1642277276700,2.33327369,3364.4,3364.3,1.95513267]
[1642277277401,2.33327369,3364.4,3364.3,7.60513267]
[1642277278600,3.11027369,3364.4,3364.3,7.60513267]
[1642277278800,3.11027369,3364.4,3364.3,5.76135415]
[1642277279205,3.11027369,3364.4,3364.3,7.48176746]
[1642277280155,3.11027369,3364.4,3364.3,7.91076746]
[1642277280756,3.11027369,3364.4,3364.3,6.079]
[1642277280955,3.11027369,3364.4,3364.3,0.429]
[1642277281761,3.88727369,3364.4,3364.3,0.5325564]
[1642277284801,4.66427369,3364.4,3364.3,0.5325564]
[1642277285404,4.66427369,3364.4,3364.3,5.6825564]
[1642277285602,4.66427369,3364.4,3364.3,0.5325564]
[1642277286604,4.66427369,3364.4,3364.3,0.1035564]
[1642277286805,4.66427369,3364.4,3364.3,0.09610978]
[1642277287856,4.78307369,3364.4,3364.3,0.09610978]
[1642277288059,5.56007369,3364.4,3364.3,0.09610978]
[1642277288259,5.44127369,3364.4,3364.3,0.09610978]
[1642277288657,8.44127369,3364.4,3364.3,0.09610978]
[1642277288857,8.44127369,3364.4,3364.3,1.24500622]
[1642277289058,8.44127369,3364.4,3364.3,15.41787622]
[1642277289562,8.44127369,3364.4,3364.3,2.90230566]
[1642277289563,2.49937369,3364.4,3364.3,2.90230566]
[1642277289758,0.777,3364.5,3364.4,5.31866717]
[1642277289958,0.777,3364.5,3364.4,5.88311717]
[1642277291017,0.777,3364.5,3364.4,6.31211717]
[1642277291207,0.777,3364.5,3364.4,7.54790145]
[1642277291409,1.554,3364.5,3364.4,7.54790145]
[1642277291707,1.554,3364.5,3364.4,3.79790145]
[1642277292406,1.554,3364.5,3364.4,7.64790145]
[1642277294606,2.331,3364.5,3364.4,7.52910145]
[1642277294864,2.331,3364.5,3364.4,3.67910145]
[1642277295059,2.331,3364.5,3364.4,3.23345145]
[1642277295258,2.281,3364.5,3364.4,3.23345145]
[1642277296459,2.281,3364.5,3364.4,3.293034]
[1642277297759,3.058,3364.5,3364.4,3.293034]
[1642277300412,2.93342901,3364.5,3364.4,8.843034]
[1642277300616,0.777,3364.8,3364.5,16.75]
[1642277300815,0.777,3364.8,3364.6,0.5478]
[1642277301012,0.00170527,3364.7,3364.6,0.5478]
[1642277301213,0.027278,3365.1,3364.7,15.19255408]
[1642277301413,0.1188,3365.2,3364.7,15.19255408]
[1642277301414,0.1188,3365.2,3364.8,0.99338]
[1642277301614,0.1188,3365.2,3364.9,11.41063655]
[1642277301615,0.00170527,3365.0,3364.9,11.41063655]
[1642277301813,0.00170527,3365.0,3364.9,11.95843655]
[1642277302256,0.1188,3365.2,3365.0,7.98744582]
[1642277302458,0.1188,3365.2,3365.1,5.729]
[1642277302861,0.11993685,3365.2,3365.1,2.729]
[1642277304059,0.89693685,3365.2,3365.1,2.729]
[1642277305169,0.89693685,3365.2,3365.1,8.879]
[1642277305359,4.754,3365.3,3365.2,1.71671804]
[1642277305569,4.754,3365.3,3365.2,0.429]
[1642277306808,4.754,3365.3,3365.2,2.97186181]
[1642277307208,5.531,3365.3,3365.2,2.97186181]
[1642277308410,5.53017273,3365.3,3365.2,2.97186181]
[1642277310156,5.48017273,3365.3,3365.2,2.97186181]
[1642277310364,6.25717273,3365.3,3365.2,2.97186181]
[1642277313061,9.25717273,3365.3,3365.2,2.97186181]
[1642277313705,10.03417273,3365.3,3365.2,2.97186181]
[1642277313907,7.03417273,3365.3,3365.2,2.97186181]
[1642277316907,7.81117273,3365.3,3365.2,2.97186181]
[1642277320168,8.58817273,3365.3,3365.2,2.97186181]
[1642277321812,8.58817273,3365.3,3365.2,3.08096348]
[1642277323117,8.58817273,3365.3,3364.3,0.1144]
[1642277323118,6.9,3365.0,3364.3,0.1144]
[1642277323324,0.04056702,3364.4,3363.8,2.6148414]
[1642277323513,0.1188,3364.3,3363.8,2.6148414]
[1642277323713,0.04056702,3364.4,3363.8,2.6148414]
[1642277324112,0.01270202,3364.4,3364.2,1.26362764]
[1642277324512,0.01270202,3364.4,3364.3,8.00511581]
[1642277324954,0.027278,3364.6,3364.3,8.00511581]
[1642277325256,0.027278,3364.8,3364.4,0.00454739]
[1642277325860,0.04059485,3364.7,3364.4,0.00454739]
[1642277326155,0.027278,3364.8,3364.4,0.00454739]
[1642277326656,0.00337343,3364.7,3364.4,0.00454739]
[1642277327055,0.804278,3364.8,3364.3,0.14571013]
[1642277327459,0.00113685,3364.6,3364.3,0.14571013]
[1642277328063,4.1266,3365.7,3364.6,16.75]
[1642277328264,0.777,3366.0,3364.9,0.14853]
[1642277328516,1.2408778,3365.8,3365.2,0.0122807]
[1642277328709,0.777,3366.0,3365.4,0.02609645]
[1642277328908,0.777,3366.0,3365.5,0.5477]
[1642277329109,0.0073895,3365.9,3365.5,0.5477]
[1642277329311,0.0073895,3365.9,3365.6,2.0]
[1642277329511,0.00682108,3365.8,3365.7,0.5477]
[1642277330408,0.00682108,3365.8,3365.7,2.5477]
[1642277330610,0.00682108,3365.8,3365.7,0.5477]
[1642277330810,0.00682108,3365.8,3365.7,4.6462]
[1642277331309,0.777,3365.9,3365.7,4.6462]
[1642277331510,0.777,3365.9,3365.8,18.0]
[1642277331708,4.1905,3366.4,3365.9,16.7]
[1642277331911,4.1905,3366.4,3366.1,14.59847]
[1642277332113,1.31155685,3366.6,3366.3,16.75]
[1642277332363,0.777,3367.3,3366.5,15.95]
[1642277332565,0.777,3367.3,3366.6,2.429]
[1642277332762,1.46195793,3367.3,3366.9,10.45]
[1642277332962,1.41195793,3367.3,3367.0,1.72572188]
[1642277333162,1.41195793,3367.3,3367.0,0.43013685]
[1642277334364,0.1187,3367.2,3367.0,0.43013685]
[1642277334562,1.48065793,3367.3,3367.0,0.43013685]
[1642277334963,9.52337185,3367.2,3366.6,1.37187207]
[1642277335162,0.02002661,3367.0,3366.6,1.37187207]
[1642277335363,1.3092829,3366.8,3366.7,0.00170527]
[1642277335762,1.3092829,3366.8,3366.2,0.00454739]
[1642277336012,0.00672673,3366.7,3366.2,0.00454739]
[1642277336217,0.00672673,3366.7,3366.3,1.35399849]
[1642277336412,2.0862829,3366.8,3366.3,1.35399849]
[1642277336612,2.0862829,3366.8,3366.4,0.00341054]
[1642277337114,2.0862829,3366.8,3366.2,0.00454739]
[1642277337313,0.1188,3366.7,3366.2,0.00454739]
[1642277337514,2.0862829,3366.8,3366.2,0.00454739]
[1642277337715,2.0862829,3366.8,3366.4,0.06384316]
[1642277337915,0.1188,3366.7,3366.4,0.06384316]
[1642277338116,0.1188,3366.7,3366.5,0.00284212]
[1642277338317,2.0862829,3366.8,3366.5,0.00284212]
[1642277338919,0.777,3366.8,3366.5,0.00284212]
[1642277339120,1.554,3366.8,3366.5,0.43184212]
[1642277339519,1.554,3366.8,3366.6,0.00227369]
[1642277340062,1.554,3366.8,3366.7,1.14878312]
[1642277340460,1.554,3366.8,3366.6,0.00227369]
[1642277341461,1.554,3366.8,3366.7,5.80470116]
[1642277341664,1.554,3366.8,3366.7,1.88370116]
[1642277342263,2.331,3366.8,3366.7,2.03216116]
[1642277342464,2.331,3366.8,3366.7,1.88370116]
[1642277342665,2.331,3366.8,3366.7,2.00250116]
[1642277343363,2.331,3366.8,3366.7,0.5478]
[1642277343820,2.331,3366.8,3366.7,0.1188]
[1642277344215,2.331,3366.8,3366.6,7.369e-05]
[1642277344414,2.33206315,3366.8,3366.6,7.369e-05]
[1642277344619,2.33206315,3366.8,3366.2,0.00234739]
[1642277345418,3.10906315,3366.8,3366.3,0.1188]
[1642277345719,3.10906315,3366.8,3366.4,0.00121054]
[1642277346117,3.10906315,3366.8,3366.5,0.15213926]
[1642277346321,3.10906315,3366.8,3366.6,1.32422896]
[1642277347295,3.10906315,3366.8,3366.6,1.24991709]
[1642277348284,3.10906315,3366.8,3366.4,0.00121054]
[1642277348485,0.1188,3366.7,3366.4,0.00121054]
[1642277348689,0.1188,3366.7,3366.3,0.00177897]
[1642277348891,3.88606315,3366.8,3366.3,0.00177897]
[1642277349189,2.15088914,3367.4,3366.4,16.75]
[1642277349396,2.1382933,3367.4,3367.2,0.01209177]
[1642277349589,0.8958,3368.2,3367.3,17.19190368]
[1642277349787,0.8958,3368.2,3367.4,18.73518136]
[1642277349988,0.8958,3368.2,3367.6,17.515463]
[1642277350191,0.777,3368.4,3368.1,0.01260885]
[1642277350391,0.777,3368.4,3368.2,0.65155]
[1642277350587,0.00852635,3368.3,3368.2,0.65155]
[1642277351213,0.00852635,3368.3,3368.2,0.429]
[1642277351420,0.00852635,3368.3,3367.9,0.22264]
[1642277351613,0.00852635,3368.3,3367.7,1.2845906]
[1642277351614,0.02337185,3368.2,3367.7,1.2845906]
[1642277351816,0.1187,3368.1,3367.7,1.2845906]
[1642277352017,0.12608951,3368.1,3367.7,1.2845906]
[1642277352212,0.00682108,3368.0,3367.7,1.2845906]
[1642277352414,1.09839203,3367.9,3367.7,1.2845906]
[1642277352613,0.00625266,3367.9,3367.7,1.2845906]
[1642277352815,0.07495266,3368.1,3367.7,1.2845906]
[1642277353016,2.11741782,3368.2,3367.7,1.2845906]
[1642277353216,0.00113685,3368.1,3367.7,1.2845906]
[1642277354023,0.00113685,3368.1,3367.6,0.045463]
[1642277354222,0.00113685,3368.1,3367.6,0.268123]
[1642277354422,0.8957,3368.3,3367.9,0.045463]
[1642277354423,0.777,3368.3,3367.9,0.045463]
[1642277354621,0.777,3368.3,3368.0,0.5477]
[1642277354868,0.777,3368.3,3368.1,0.429]
[1642277355067,0.1187,3368.2,3368.0,0.429]
[1642277355366,0.1187,3368.2,3368.1,1.27425205]
[1642277355566,5.4687,3368.2,3368.1,1.27425205]
[1642277356166,0.1187,3368.2,3368.1,1.25195821]
[1642277356368,0.1187,3368.2,3367.7,0.0022737]
[1642277357169,0.01431874,3368.1,3367.7,0.0022737]
[1642277357368,0.1187,3368.0,3367.8,1.20017079]
[1642277357568,0.1187,3368.2,3367.8,1.20017079]
[1642277357767,0.1187,3368.2,3367.9,0.00113685]
[1642277357967,0.01331774,3368.1,3367.9,0.00113685]
[1642277358167,0.01331774,3368.1,3367.4,0.038189]
[1642277358168,0.02337185,3367.9,3367.4,0.038189]
[1642277358368,11.8687,3368.0,3367.2,0.00511581]
[1642277358369,0.02337185,3367.7,3367.2,0.00511581]
[1642277358617,6.9187,3367.6,3367.5,0.00341054]
[1642277358813,0.02337185,3367.5,3367.2,1.54254295]
[1642277359015,0.1187,3367.4,3367.2,0.00511581]
[1642277359221,0.1187,3367.5,3367.3,0.00454739]
[1642277359416,0.1187,3367.5,3367.2,0.00511581]
[1642277359614,3.6456,3367.9,3367.3,0.03279089]
[1642277359615,0.1187,3367.7,3367.3,0.03279089]
[1642277359815,0.1187,3367.8,3367.1,0.038189]
[1642277360014,0.1187,3367.8,3367.4,0.00397897]
[1642277360213,0.1187,3367.8,3367.2,0.00511581]
[1642277360413,0.1187,3367.8,3366.9,0.03149381]
[1642277360614,1.24703956,3367.5,3367.0,0.2227]
[1642277360814,1.1983281,3367.6,3367.0,0.22383685]
[1642277361014,0.00113684,3367.4,3367.0,0.11983685]
[1642277361212,0.00170527,3367.5,3367.0,0.11983685]
[1642277361418,0.777,3367.4,3367.0,0.11983685]
[1642277361615,0.77813684,3367.4,3367.3,16.790327]
[1642277361819,0.77813684,3367.4,3367.3,18.59786849]
[1642277362466,0.77813684,3367.4,3367.3,1.84786849]
[1642277362668,0.77813684,3367.4,3367.3,1.37854149]
[1642277363067,0.89683684,3367.4,3367.3,1.37854149]
[1642277363469,0.89683684,3367.4,3367.3,0.1187]
[1642277364576,3.89683684,3367.4,3367.3,0.1187]
[1642277364769,4.67383684,3367.4,3367.3,0.1187]
[1642277366214,5.94112383,3367.4,3367.3,0.1187]
[1642277367915,6.71812383,3367.4,3367.3,0.1187]
[1642277368517,5.33213684,3367.4,3367.3,0.1187]
[1642277369779,5.33213684,3367.4,3367.0,0.22382685]
[1642277369970,5.33213684,3367.4,3367.1,0.1187]
[1642277370570,5.33213684,3367.4,3367.3,1.26210934]
[1642277371172,6.22783684,3367.4,3367.0,0.00113685]
[1642277371373,0.0040567,3367.3,3367.0,0.00113685]
[1642277371571,0.0040567,3367.3,3366.9,0.00170527]
[1642277371771,6.22783684,3367.4,3366.9,0.00170527]
[1642277371973,6.22783684,3367.4,3366.6,0.12211054]
[1642277372277,6.22783684,3367.4,3366.7,0.00284212]
[1642277372478,1.37538129,3366.9,3366.7,4.04233806]
[1642277372873,1.37538129,3366.9,3366.8,0.0022737]
[1642277373072,6.10913684,3367.4,3366.8,0.0022737]
[1642277373272,6.10913684,3367.4,3366.9,0.04031115]
[1642277373522,6.10913684,3367.4,3367.0,0.1187]
[1642277374117,6.10913684,3367.4,3367.3,1.4306127]
[1642277374317,6.88613684,3367.4,3367.0,0.1187]
[1642277374716,6.88613684,3367.4,3367.1,0.20672245]
[1642277375516,6.88613684,3367.4,3367.2,1.2938204]
[1642277376318,6.88613684,3367.4,3367.2,1.7228204]
[1642277376716,6.88613684,3367.4,3367.2,1.8415204]
[1642277377470,7.66313684,3367.4,3367.2,1.8415204]
[1642277380268,7.66313684,3367.4,3367.2,1.2938204]
[1642277380468,7.66313684,3367.4,3366.8,0.4476537]
[1642277380669,8.44013684,3367.4,3366.9,0.1187]
[1642277380869,1.26877834,3367.0,3366.9,0.12040527]
[1642277381414,1.26877834,3367.0,3366.9,0.00170527]
[1642277382418,1.26877834,3367.0,3366.9,1.49379026]
[1642277383016,1.26877834,3367.0,3366.7,2.5407445]
[1642277383820,2.04577834,3367.0,3366.7,2.5407445]
[1642277384019,2.04577834,3367.0,3366.2,0.429]
[1642277384224,0.02337185,3366.9,3366.4,0.22273]
[1642277384421,2.04577834,3367.0,3366.5,1.91150719]
[1642277384620,2.04577834,3367.0,3366.6,0.429]
[1642277384863,2.04577834,3367.0,3366.7,0.429]
[1642277385064,2.04577834,3367.0,3366.7,0.43013685]
[1642277385662,2.04577834,3367.0,3366.8,1.1567681]
[1642277385864,2.04577834,3367.0,3366.9,0.1188]
[1642277386263,2.04577834,3367.0,3366.8,0.1188]
[1642277386664,2.04577834,3367.0,3366.8,0.34151]
[1642277387064,2.82277834,3367.0,3366.8,0.34151]
[1642277387263,2.82277834,3367.0,3366.9,1.4156248]
[1642277388266,2.82277834,3367.0,3366.9,1.50012552]
[1642277389119,2.82277834,3367.0,3366.8,0.1188]
[1642277390320,3.59977834,3367.0,3366.8,0.1188]
[1642277390721,3.55773934,3367.0,3366.8,0.1188]
[1642277391523,3.55773934,3367.0,3366.8,0.1039737]
[1642277391927,3.55773934,3367.0,3366.8,1.86722217]
[1642277393472,4.33473934,3367.0,3366.8,1.86722217]
[1642277394071,4.33473934,3367.0,3366.9,9.1]
[1642277395472,4.33473934,3367.0,3366.9,9.2188]
[1642277395673,4.33473934,3367.0,3366.9,0.1188]